Cogmind - Beta 12 @@@ ROGUE MODE // 2023.07.29 @ 16:31:35 Player: TheGreatBorealis Result: Destroyed by D-53 Grenadier with Mini Grenade Launcher Performance ------------- Evolutions (0) 0 Regions Visited (2) 400 Robots Destroyed (22) 110 Value Destroyed (454) 454 Prototype IDs (0) 0 Alien Tech Used (0) 0 Bonus (24) 24 TOTAL SCORE: 988 Bonus ------- High Alert Combat Kills 24 Cogmind --------- Core Integrity 0/250 Matter 300/300 Energy 99/100 System Corruption 0% Temperature Cool (0) Movement Core (50) Location -10/Mines Parts ------- > --- POWER (1) -------- (None) > --- PROPULSION (2) --- (None) > --- UTILITY (2) ------ (None) > --- WEAPON (2) ------- (None) > --- INVENTORY (5) ---- Wheel Medium Storage Unit Large Matter Pod (77) Grenade Launcher Mining Claw Peak State ------------ > --- POWER ------------ Light Ion Engine > --- PROPULSION ------- Aluminum Leg Aluminum Leg > --- UTILITY ---------- Medium Storage Unit Large Matter Pod > --- WEAPON ----------- Assault Rifle Light Assault Rifle > --- INVENTORY -------- Ion Engine Aluminum Leg Aluminum Leg Aluminum Leg Aluminum Leg Wheel Medium Storage Unit Large Matter Pod Grenade Launcher Mining Claw [Rating: 8] Favorites ----------- Power Ion Engine Engine Ion Engine Propulsion Aluminum Leg Leg Aluminum Leg Utility Large Matter Pod Storage Large Matter Pod Weapon Assault Rifle Ballistic Gun Assault Rifle Launcher Grenade Launcher Slashing Weapon Mining Claw Build | -11 -10 -10 ------- Run | Jun Mat Min Slots Evolved . | . . . Power . | . . . Propulsion . | . . . Utility . | . . . Weapon . | . . . Parts Attached 21 | . 11 10 Power 2 | . 1 1 Engine 2 | . 1 1 Core . | . . . Reactor . | . . . Propulsion 5 | . 1 4 Treads . | . . . Leg 5 | . 1 4 Wheel . | . . . Hover . | . . . Flight . | . . . Utility 2 | . 2 . Device . | . . . Storage 2 | . 2 . Processor . | . . . Hackware . | . . . Protection . | . . . Artifact . | . . . Weapon 12 | . 7 5 Energy Gun . | . . . Energy Cannon . | . . . Ballistic Gun 6 | . 3 3 Ballistic Cannon . | . . . Launcher 5 | . 3 2 Special Weapon . | . . . Impact Weapon . | . . . Slashing Weapon 1 | . 1 . Piercing Weapon . | . . . Special Melee Weapon . | . . . Unidentified Prototypes . | . . . Parts Lost 6 | . . 6 Power 1 | . . 1 Propulsion 2 | . . 2 Utility . | . . . Weapon 3 | . . 3 Highest Loss Streak 5 | . . 5 To Critical Strikes . | . . . Average Slot Usage (%) 95 | . 96 93 Engine 13 | . 14 13 Leg 27 | . 28 26 Storage 25 | . 24 26 Ballistic Gun 26 | . 26 25 Launcher 1 | . 1 . Naked Turns 3 | . . 3 Heaviest Build 20 | 14 20 19 Greatest Support 20 | 20 20 20 Greatest Overweight (x) . | . . . Average Overweight (x) . | . . . Largest Inventory Capacity 10 | 8 10 10 Average Capacity 8 | 8 8 9 Most Carried 10 | 6 9 10 Average Carried 8 | 6 8 9 Final Capacity 10 | 8 10 5 Final Carried 9 | 6 9 5 Class Distribution -------------------- 100% | Mutant Dominant Class ---------------- Mutant | -10/Materials Mutant | -10/Mines Resources | -11 -10 -10 ----------- Run | Jun Mat Min Matter Collected 921 | 218 323 380 Remotely . | . . . Salvage Created 407 | 17 326 64 Parts 35 | 1 30 4 Haulers Intercepted . | . . . Recyclers Shooed . | . . . Parts Field Recycled . | . . . Retrieved Matter . | . . . Parts Self-Destructed . | . . . Prevented . | . . . Kills | -11 -10 -10 ------- Run | Jun Mat Min Combat Hostiles Destroyed 18 | . 16 2 Guns 10 | . 9 1 AOE 8 | . 7 1 Classes Destroyed 5 | 1 4 . Worker 2 | . 2 . Tunneler 1 | 1 . . Operator 1 | . 1 . Swarmer 9 | . 9 . Grunt 9 | . 7 2 Best Kill Streak 7 | 1 7 1 Combat Bots Only 6 | . 6 1 Max Kills in Single Turn 3 | 1 3 1 Gunslinging . | . . . Exploded 3 | . 3 1 Melee . | . . . Uniques/NPCs Destroyed . | . . . Combat | -11 -10 -10 -------- Run | Jun Mat Min Damage Taken 1101 | . 393 708 Core 267 | . 61 206 Absorbed by Shields . | . . . Core Remaining (%) 100 | 100 . . Volleys Fired 48 | 3 34 11 Largest 2 | 2 2 2 Hottest 50 | 40 50 50 Shots Fired 96 | 6 68 22 Gun 86 | 6 61 19 Cannon . | . . . Launcher 10 | . 7 3 Special . | . . . Kinetic 86 | 6 61 19 Thermal . | . . . Explosive 10 | . 7 3 Electromagnetic . | . . . Robot Hit Streak 10 | 4 10 4 Robot Miss Streak 5 | 1 5 2 Penetration Max . | . . . Secondary Targets 2 | . 2 . Max Gunslinging Chain 1 | . 1 . Shots Hit Robots 49 | 4 32 13 Core Hits 33 | 1 28 4 Critical Kills 1 | . 1 . Critical Parts Destroyed 1 | . 1 . Critical Strikes 2 | . 2 . Destroy 2 | . 2 . Melee Attacks 1 | . 1 . Impact . | . . . Slashing 1 | . 1 . Piercing . | . . . Sneak Attacks . | . . . Combat Hostiles . | . . . Follow-up Attacks . | . . . Damage Inflicted 1259 | 50 931 278 Guns 612 | 50 417 145 Cannons . | . . . Explosions 647 | . 514 133 Melee . | . . . Ramming . | . . . Kinetic 612 | 50 417 145 Thermal . | . . . Explosive 647 | . 514 133 Electromagnetic . | . . . Impact . | . . . Slashing . | . . . Piercing . | . . . Highest Corruption . | . . . Average Corruption . | . . . Corruption Purged . | . . . Corruption Blocked . | . . . Overload Shots . | . . . Overflow Damage . | . . . Projectiles . | . . . Explosions . | . . . Melee . | . . . Knockbacks . | . . . Impact . | . . . Kinetic . | . . . Secondary . | . . . Self-Inflicted Damage . | . . . Shots . | . . . Rammed . | . . . Targets Rammed . | . . . Kicked . | . . . Crushed . | . . . Highest Temperature 10 | . 2 10 Average Temperature 4 | . 2 5 Received Heat Transfer 198 | . 114 84 Siege Activations . | . . . Robots Corrupted . | . . . Combat Hostiles . | . . . Parts Fried . | . . . Impact Corruptions . | . . . Robots Melted . | . . . Combat Hostiles . | . . . Parts Melted . | . . . Heat Transferred . | . . . Parts Sabotaged . | . . . Parts Stolen . | . . . Parts Stripped . | . . . Power Chain Reactions . | . . . Missiles Intercepted . | . . . Alert | -11 -10 -10 ------- Run | Jun Mat Min Peak Influence 541 | 5 541 232 Initial 160 | . 3 160 Average 249 | 3 266 218 Maximum Alert Level 2 | . 2 1 Low Security (%) 30 | 100 33 12 Level 1 45 | . 34 87 Level 2 23 | . 31 . Level 3 . | . . . Level 4 . | . . . Level 5 . | . . . High Security . | . . . Max Security . | . . . Squads Dispatched 3 | . 3 . Investigation 1 | . 1 . Extermination . | . . . Reinforcement 2 | . 2 . Assault . | . . . Garrison . | . . . Intercept . | . . . Searches Triggered . | . . . Construction Impeded . | . . . Haulers Reinforced . | . . . Active Scanning Responses . | . . . Cargo Convoy Interrupts . | . . . Stealth | -11 -10 -10 --------- Run | Jun Mat Min Distress Signals 3 | . 3 . Communications Jammed . | . . . Distress Signals . | . . . Times Spotted 31 | . 27 4 Peak Tracking Total 6 | . 6 2 Tactical Retreats 1 | . 1 . Traps | -11 -10 -10 ------- Run | Jun Mat Min Traps Triggered 1 | . 1 . Indirectly . | . . . Trap Hack Attempts . | . . . Triggered . | . . . Disarmed . | . . . Reprogrammed . | . . . Reused . | . . . Traps Extracted . | . . . Installed . | . . . Triggered . | . . . Machines | -11 -10 -10 ---------- Run | Jun Mat Min Machines Disabled 2 | . 2 . Max in Single Turn 2 | . 2 . Machines Repaired . | . . . Machines Sabotaged . | . . . Overloaded Fab Kills . | . . . Hacking | -11 -10 -10 --------- Run | Jun Mat Min Machines Accessed . | . . . Terminals . | . . . Fabricators . | . . . Repair Stations . | . . . Recycling Units . | . . . Scanalyzers . | . . . Garrison Access . | . . . Total Hacks . | . . . Successful . | . . . Failed . | . . . Catastrophic . | . . . Database Lockouts . | . . . Manual . | . . . Terminals . | . . . Fabricators . | . . . Repair Stations . | . . . Recycling Units . | . . . Scanalyzers . | . . . Garrison Access . | . . . Terminal Hacks . | . . . Fabricator Hacks . | . . . Repair Station Hacks . | . . . Recycling Unit Hacks . | . . . Scanalyzer . | . . . Garrison Access Hacks . | . . . Unauthorized Hacks . | . . . Terminals . | . . . Fabricators . | . . . Repair Stations . | . . . Recycling Units . | . . . Scanalyzers . | . . . Garrison Access . | . . . Data Cores Recovered . | . . . Used . | . . . Hacking Detections . | . . . Full Trace Events . | . . . Feedback Events . | . . . Feedback Blocked . | . . . Robot Schematics Acquired . | . . . Robots Built . | . . . Authchips . | . . . Time . | . . . Total Robot Build Rating . | . . . Part Schematics Acquired . | . . . Parts Built . | . . . Authchips . | . . . Time . | . . . Total Part Build Rating . | . . . Parts Repaired . | . . . Time . | . . . Parts Recycled . | . . . Recycled Matter . | . . . Retrieved Matter . | . . . Retrieved Components . | . . . Parts Scanalyzed . | . . . Part Schematics Acquired . | . . . Parts Damaged . | . . . Bothacking | -11 -10 -10 ------------ Run | Jun Mat Min Used RIF Installer . | . . . Robots Hacked . | . . . Non-combat . | . . . Combat . | . . . Robot Hacks Applied . | . . . Relay Couplers Released . | . . . Fabnet Peak Effective % . | . . . Robots Rewired . | . . . Allies Hacked . | . . . Hacks Repelled . | . . . Allies | -11 -10 -10 -------- Run | Jun Mat Min Total Allies . | . . . Largest Group . | . . . Highest-Rated Group . | . . . Highest-Rated Ally . | . . . Total Orders . | . . . Ally Attacks . | . . . Total Damage . | . . . Kills . | . . . Allies Corrupted . | . . . Allies Melted . | . . . Intel | -11 -10 -10 ------- Run | Jun Mat Min Robot Analysis Total . | . . . Derelict Logs Recovered . | . . . Drone Launches . | . . . Drone Recoveries . | . . . Exploration | -11 -10 -10 ------------- Run | Jun Mat Min Turns Passed 701 | 17 536 148 Spaces Moved 412 | 7 319 86 Core 3 | . . 3 Treads . | . . . Legs 409 | 7 319 83 Wheels . | . . . Hover . | . . . Flight . | . . . Fastest Speed 50 | 120 120 50 Average Speed 119 | 120 120 117 Slowest Speed 120 | 120 120 120 Overloaded Moves . | . . . Propulsion Burnouts . | . . . Robots Hopped . | . . . Cave-ins Triggered . | . . . Exploration Rate (%) 21 | 2 43 20 Regions Visited 2 Branch Regions 1 Pre-discovered Areas . | . . . Known Exits Taken . | . . . Unknown Exits Taken 2 | 1 1 . Scrap Searched 1 | . . 1 Spaces Dug 1 | . 1 . Terrain Destroyed 87 | . 68 19 Melee 1 | . 1 . Projectile . | . . . AOE 86 | . 67 19 Terrain Rammed . | . . . Walls Destroyed . | . . . Machines Disabled . | . . . Actions | -11 -10 -10 --------- Run | Jun Mat Min Total 522 | 9 404 109 Wait 23 | . 23 . Move 410 | 6 318 86 Hop . | . . . Pick Up 10 | . 9 1 Fast Attach 1 | . 1 . Attach 5 | . 1 4 Detach . | . . . Swap 15 | . 9 6 Drop 9 | . 8 1 Fire 48 | 3 34 11 Melee 1 | . 1 . Ram . | . . . Kick . | . . . Crush . | . . . Escape Stasis . | . . . Rewire . | . . . Trap . | . . . Miscellaneous . | . . . Route ------- -11/Junkyard -10/Materials (discovered 2 exits: [*Mat] / [*Min]) -10/Mines (discovered 1 exit: [*Mat]) History --------- Turn | Location | Event 10 | -11/Junkyard | Discovered new exit (range 3) 18 | -11/Junkyard | Entered Materials 328 | -10/Materials | Discovered new exit (range 15) 329 | -10/Materials | Build established: Mutant 542 | -10/Materials | Discovered new exit (range 8) 554 | -10/Materials | Entered Mines 606 | -10/Mines | Discovered new exit (range 8) 669 | -10/Mines | Assembled infested the area 694 | -10/Mines | Core integrity fell below 50% 699 | -10/Mines | Released all parts (5) 702 | -10/Mines | Core integrity fell below 20% 702 | -10/Mines | Destroyed by D-53 Grenadier with Mini Grenade Launcher Last Messages --------------- 00624_ Extracted 200 matter. 00630_ T-07 Excavator is excavating. 00669_ ALERT: Infestation in the mines, dispatching Demolisher response squad. 00685_ C-30 ARC bursts open, deploying its payload. 00685_ D-53 Grenadier unfolds itself. 00690_ Lgt. Ion Engine destroyed. 00690_ Assault Rifle destroyed. 00693_ The unstable cave ceiling collapses. 00693_ Aluminum Leg destroyed. 00697_ The unstable cave ceiling collapses. 00698_ Lgt. Assault Rifle destroyed. 00699_ Released Aluminum Leg. 00699_ Released Ion Engine. 00699_ Released Lrg. Matter Pod. 00699_ Released Med. Storage Unit. 00699_ Released Aluminum Leg. 00699_ Dropped Aluminum Leg. 00700_ Acquired Med. Storage Unit. 00701_ The unstable cave ceiling collapses. Map ----- +----------------------------------------------------+ | ?????????????????????????????????????????????????? | | ?????????????????????????????????????????????????? | | ?????????????????????????????????????????????????? | | ?????????????????????????????????????????????????? | | ?????????????????????????????????????????????????? | | ?????????????????????????????????????????????????? | | ?????????????????????????????????????????????????? | | ?????????????????????????????????????????????????? | | ?????????????????????????????????????????????????? | | ?????????????????????????????????????????????????? | | ?????????????????????????????????????????????????? | | ?????????????????????????????????????????????????? | | ?????????????????????????????????????????????????? | | ?????????????????????????????????????????????????? | | ?????????????????????????????????????????????????? | | ?????????????????????????????????????????????????? | | ????????????????????????????##???????????????????? | | ???????????????????????????? ????????????????????? | | ???????????????????????????? ????????????????????? | | ??????????????????????????? #????????????????????? | | ??????????????????????##### #????????????????????? | | ?????????????????????## # # ##???????????????????? | | ??????????????????#### #???????????????????? | | ?????????????????## #???????????????????? | | ????????????????## ########????????????? | | ????????????????# !@ ????????? | | ???????????????## = #####???????????????? | | ???????????????# = #??????????????????? | | ???????????????## ##??????????????????? | | ????????????????# ##???????????????????? | | ???????????????# ##????????????????????? | | ???????????????## #??????????????????? ?? | | ????????????????# ## dd#######????????????? ?? | | ????????????????## #????????????? ?? | | ?????????????????# "%"#????##??????? # | | ????????????????## ######## #???# ##?????? ? | | ???????????????## ##??????# #### #?????? ? | | ???????????##### ##???????# #????## ?? | | ???????????# ####????????##### ##???# ?? | | ??????????# ###?????????####### #???# #?? | | ??????????# ##???????????# #???# #?? | | ??????????## ?????????????# ##### ##?### #?? | | ???????????## #?????????????# #???# ##?## ### | | ????????????# ?????????????## ##??# ##### # | | ???????????? ????????????## ##?# #### | | ???????????## ????????????## ### | | ????????????# ????????????# < ## ## # | | ????????????# ????????????# # # # | | ????????????#?????????????# ## !! ] ## ## | | ??????????????????????????# ?# !! # #####? | +----------------------------------------------------+ Best States ------------- Heat Dissipation 25 Energy Generation 10 Energy Capacity 250 Matter Stores 450 Matter Capacity 450 Sight Range 16 Terrain Scan Density 10 Evasion (%) 55 Item Schematics ----------------- None Robot Schematics ------------------ None Fabricated ------------ Nothing Alien Tech Used ----------------- None Achievements -------------- None Challenges ------------ None Game ------ Seed StealthSpectralRifle Manual? 0 Play Time 00:08:04 Cumulative 125.6 hours Start 2023.07.29 @ 16:25:06 End 2023.07.29 @ 16:31:35 Sessions 1 Manual Loads 0 Difficulty Rogue Special Mode None Game No. 206 Rogue 206 Adventurer 0 Explorer 0 Win Type - Total 0 Types 0/0/0/0/0/0/0/0/0 Lore% 56 Gallery% 60 Achievement% 46 Wizard Run 0 Options --------- ASCII 0 Keyboard 1 Movement Numpad Keybinds 0 Fullscreen 1 Font 18/SmallcapsGlow Map View 76x50 Tactical HUD 1 Map Filters NONE Filters NONE Steam 1 RUN: fc188234-ca89-4e99-8683-dac78b1e96b4